[Event "Titled Tuesday Blitz November 14 Early 2023"]
[White "arenal72"]
[Black "Harshavardhan G B"]
[BlackFideId "25059009"]
[WhiteElo "2497"]
[BlackElo "2758"]
[Result "1-0"]
[Round "7"]
[TimeControl "180+1"]
[Date "2023.11.14"]
[WhiteClock "0:00:12"]
[BlackClock "0:00:17"]
[Board "56"]

1. Nf3 {[%clk 0:03:00]}  Nf6 {[%clk 0:02:56]} 2. g3 {[%clk 0:03:00]}  g6 {[%clk 0:02:54]} 3. Bg2 {[%clk 0:03:00]}  Bg7 {[%clk 0:02:53]} 4. O-O {[%clk 0:03:01]}  O-O {[%clk 0:02:53]} 5. c4 {[%clk 0:02:57]}  d6 {[%clk 0:02:52]} 6. d4 {[%clk 0:02:53]}  Nbd7 {[%clk 0:02:51]} 7. Nc3 {[%clk 0:02:50]}  e5 {[%clk 0:02:52]} 8. dxe5 {[%clk 0:02:50]}  dxe5 {[%clk 0:02:52]} 9. Qc2 {[%clk 0:02:44]}  c6 {[%clk 0:02:51]} 10. b3 {[%clk 0:02:43]}  Qe7 {[%clk 0:02:51]} 11. a4 {[%clk 0:02:39]}  Rd8 {[%clk 0:02:45]} 12. Ba3 {[%clk 0:02:38]}  Qe8 {[%clk 0:02:45]} 13. Rad1 {[%clk 0:02:36]}  e4 {[%clk 0:02:34]} 14. Ng5 {[%clk 0:02:35]}  e3 {[%clk 0:02:35]} 15. f4 {[%clk 0:02:17]}  Nf8 {[%clk 0:02:30]} 16. Rxd8 {[%clk 0:02:14]}  Qxd8 {[%clk 0:02:31]} 17. Rd1 {[%clk 0:02:14]}  Qe8 {[%clk 0:02:30]} 18. Nce4 {[%clk 0:02:12]}  Bf5 {[%clk 0:02:24]} 19. Nxf6+ {[%clk 0:02:05]}  Bxf6 {[%clk 0:02:24]} 20. Be4 {[%clk 0:02:03]}  Bxg5 {[%clk 0:02:08]} 21. Bxf5 {[%clk 0:02:01]}  Bf6 {[%clk 0:02:08]} 22. Bh3 {[%clk 0:01:58]}  Ne6 {[%clk 0:02:07]} 23. Rd3 {[%clk 0:01:41]}  Nd4 {[%clk 0:01:51]} 24. Qd1 {[%clk 0:01:41]}  Rd8 {[%clk 0:01:50]} 25. Bc5 {[%clk 0:01:38]}  Nxe2+ {[%clk 0:01:22]} 26. Qxe2 {[%clk 0:01:28]}  Rxd3 {[%clk 0:01:23]} 27. Qxd3 {[%clk 0:01:28]}  e2 {[%clk 0:01:23]} 28. Bf2 {[%clk 0:01:27]}  e1=Q+ {[%clk 0:01:23]} 29. Bxe1 {[%clk 0:01:27]}  Qxe1+ {[%clk 0:01:24]} 30. Bf1 {[%clk 0:01:13]}  c5 {[%clk 0:01:23]} 31. Kg2 {[%clk 0:01:13]}  Bd4 {[%clk 0:01:20]} 32. Be2 {[%clk 0:01:10]}  Qf2+ {[%clk 0:01:19]} 33. Kh3 {[%clk 0:01:10]}  f5 {[%clk 0:01:17]} 34. Bf3 {[%clk 0:01:05]}  Kg7 {[%clk 0:01:04]} 35. Bxb7 {[%clk 0:00:56]}  Qe1 {[%clk 0:01:02]} 36. Bf3 {[%clk 0:00:52]}  Kf6 {[%clk 0:00:51]} 37. Qe2 {[%clk 0:00:51]}  Qc3 {[%clk 0:00:51]} 38. Bd5 {[%clk 0:00:48]}  Be3 {[%clk 0:00:49]} 39. a5 {[%clk 0:00:32]}  h5 {[%clk 0:00:41]} 40. a6 {[%clk 0:00:28]}  Ke7 {[%clk 0:00:34]} 41. Qa2 {[%clk 0:00:23]}  h4 {[%clk 0:00:30]} 42. Qa4 {[%clk 0:00:10]}  hxg3 {[%clk 0:00:22]} 43. Qc6 {[%clk 0:00:10]}  Qh8+ {[%clk 0:00:16]} 44. Kxg3 {[%clk 0:00:08]}  Bxf4+ {[%clk 0:00:12]} 45. Kxf4 {[%clk 0:00:08]}  Qxh2+ {[%clk 0:00:13]} 46. Ke3 {[%clk 0:00:07]}  Qg1+ {[%clk 0:00:13]} 47. Kd2 {[%clk 0:00:06]}  Qd4+ {[%clk 0:00:13]} 48. Kc2 {[%clk 0:00:06]}  Qf2+ {[%clk 0:00:13]} 49. Kb1 {[%clk 0:00:06]}  Qe1+ {[%clk 0:00:14]} 50. Kb2 {[%clk 0:00:06]}  Qd2+ {[%clk 0:00:14]} 51. Ka3 {[%clk 0:00:06]}  Qc1+ {[%clk 0:00:14]} 52. Ka4 {[%clk 0:00:04]}  Qe3 {[%clk 0:00:09]} 53. Qc7+ {[%clk 0:00:03]}  Kf6 {[%clk 0:00:09]} 54. Qxa7 {[%clk 0:00:03]}  Qe1 {[%clk 0:00:03]} 55. Qb6+ {[%clk 0:00:04]}  Kg5 {[%clk 0:00:03]} 56. a7 {[%clk 0:00:04]}  Qa1+ {[%clk 0:00:03]} 57. Kb5 {[%clk 0:00:04]}  f4 {[%clk 0:00:04]} 58. a8=Q {[%clk 0:00:04]}  Qxa8 {[%clk 0:00:05]} 59. Bxa8 {[%clk 0:00:05]}  f3 {[%clk 0:00:06]} 60. Qxc5+ {[%clk 0:00:05]}  Kf4 {[%clk 0:00:07]} 61. Qf8+ {[%clk 0:00:04]}  Ke3 {[%clk 0:00:07]} 62. Qxf3+ {[%clk 0:00:04]}  Kd2 {[%clk 0:00:08]} 63. Be4 {[%clk 0:00:05]}  g5 {[%clk 0:00:07]} 64. Qd3+ {[%clk 0:00:05]}  Ke1 {[%clk 0:00:08]} 65. Bf3 {[%clk 0:00:05]}  Kf2 {[%clk 0:00:08]} 66. Qe2+ {[%clk 0:00:05]}  Kg3 {[%clk 0:00:09]} 67. Qg2+ {[%clk 0:00:06]}  Kf4 {[%clk 0:00:10]} 68. Qg4+ {[%clk 0:00:07]}  Ke3 {[%clk 0:00:11]} 69. Qxg5+ {[%clk 0:00:08]}  Kf2 {[%clk 0:00:12]} 70. c5 {[%clk 0:00:08]}  Kxf3 {[%clk 0:00:12]} 71. c6 {[%clk 0:00:09]}  Ke4 {[%clk 0:00:13]} 72. c7 {[%clk 0:00:10]}  Kd3 {[%clk 0:00:14]} 73. c8=Q {[%clk 0:00:10]}  Ke2 {[%clk 0:00:15]} 74. Qe6+ {[%clk 0:00:10]}  Kf3 {[%clk 0:00:16]} 75. Qgf5+ {[%clk 0:00:10]}  Kg3 {[%clk 0:00:16]} 76. Qeg6+ {[%clk 0:00:11]}  Kh4 {[%clk 0:00:17]} 77. Qfh5# {[%clk 0:00:12]} 1-0


[Site "https://www.chess.com"]

[Event "Titled Tuesday Blitz November 14 Early 2023"]
[White "Preobrazhenska_D2011"]
[Black "Sattarov, Bobir"]
[BlackFideId "14203081"]
[WhiteElo "2458"]
[BlackElo "2748"]
[Result "0-1"]
[Round "7"]
[TimeControl "180+1"]
[Date "2023.11.14"]
[WhiteClock "0:00:00"]
[BlackClock "0:01:53"]
[Board "58"]

1. e4 {[%clk 0:02:59]}  e5 {[%clk 0:02:59]} 2. Nf3 {[%clk 0:02:59]}  Nc6 {[%clk 0:02:59]} 3. Bb5 {[%clk 0:02:59]}  a6 {[%clk 0:02:59]} 4. Ba4 {[%clk 0:02:59]}  Bc5 {[%clk 0:02:59]} 5. c3 {[%clk 0:02:52]}  Qf6 {[%clk 0:02:59]} 6. O-O {[%clk 0:02:50]}  Nge7 {[%clk 0:02:58]} 7. d3 {[%clk 0:02:37]}  h6 {[%clk 0:02:58]} 8. Nbd2 {[%clk 0:02:35]}  O-O {[%clk 0:02:58]} 9. Bc2 {[%clk 0:02:33]}  d6 {[%clk 0:02:58]} 10. h3 {[%clk 0:02:30]}  Ng6 {[%clk 0:02:58]} 11. Nb3 {[%clk 0:02:19]}  Ba7 {[%clk 0:02:58]} 12. d4 {[%clk 0:02:19]}  Nce7 {[%clk 0:02:52]} 13. Be3 {[%clk 0:02:03]}  Nf4 {[%clk 0:02:51]} 14. Bxf4 {[%clk 0:01:43]}  Qxf4 {[%clk 0:02:52]} 15. Nc1 {[%clk 0:01:29]}  Ng6 {[%clk 0:02:51]} 16. Ne2 {[%clk 0:01:24]}  Qf6 {[%clk 0:02:50]} 17. Qd3 {[%clk 0:01:09]}  Be6 {[%clk 0:02:46]} 18. Rfe1 {[%clk 0:00:57]}  Rad8 {[%clk 0:02:44]} 19. d5 {[%clk 0:00:54]}  Bc8 {[%clk 0:02:44]} 20. c4 {[%clk 0:00:54]}  Nh4 {[%clk 0:02:41]} 21. Rf1 {[%clk 0:00:27]}  Nxf3+ {[%clk 0:02:37]} 22. Qxf3 {[%clk 0:00:28]}  Qxf3 {[%clk 0:02:37]} 23. gxf3 {[%clk 0:00:28]}  Bxh3 {[%clk 0:02:38]} 24. Rfd1 {[%clk 0:00:28]}  f5 {[%clk 0:02:38]} 25. Kh2 {[%clk 0:00:22]}  fxe4 {[%clk 0:02:36]} 26. Kxh3 {[%clk 0:00:22]}  Rxf3+ {[%clk 0:02:35]} 27. Kg4 {[%clk 0:00:20]}  Rxf2 {[%clk 0:02:29]} 28. Re1 {[%clk 0:00:21]}  e3 {[%clk 0:02:22]} 29. Be4 {[%clk 0:00:21]}  Rdf8 {[%clk 0:02:20]} 30. Rac1 {[%clk 0:00:16]}  R8f4+ {[%clk 0:02:17]} 31. Nxf4 {[%clk 0:00:12]}  Rxf4+ {[%clk 0:02:18]} 32. Kg3 {[%clk 0:00:12]}  Rxe4 {[%clk 0:02:19]} 33. Re2 {[%clk 0:00:11]}  Rf4 {[%clk 0:02:14]} 34. b4 {[%clk 0:00:10]}  a5 {[%clk 0:02:13]} 35. a3 {[%clk 0:00:10]}  axb4 {[%clk 0:02:13]} 36. axb4 {[%clk 0:00:11]}  Bd4 {[%clk 0:02:14]} 37. c5 {[%clk 0:00:09]}  Rf7 {[%clk 0:02:05]} 38. cxd6 {[%clk 0:00:07]}  cxd6 {[%clk 0:02:05]} 39. Rc8+ {[%clk 0:00:07]}  Kh7 {[%clk 0:02:06]} 40. Rd8 {[%clk 0:00:07]}  Rf6 {[%clk 0:02:06]} 41. Rd7 {[%clk 0:00:07]}  b6 {[%clk 0:02:06]} 42. b5 {[%clk 0:00:07]}  h5 {[%clk 0:02:05]} 43. Rb7 {[%clk 0:00:05]}  Kh6 {[%clk 0:02:04]} 44. Rb8 {[%clk 0:00:06]}  g5 {[%clk 0:02:03]} 45. Rh8+ {[%clk 0:00:05]}  Kg6 {[%clk 0:02:03]} 46. Rg8+ {[%clk 0:00:06]}  Kf5 {[%clk 0:02:04]} 47. Rh8 {[%clk 0:00:05]}  h4+ {[%clk 0:02:04]} 48. Kh3 {[%clk 0:00:04]}  Ke4 {[%clk 0:02:04]} 49. Rg8 {[%clk 0:00:03]}  Kd3 {[%clk 0:02:02]} 50. Re1 {[%clk 0:00:03]}  Rf3+ {[%clk 0:02:02]} 51. Kg2 {[%clk 0:00:03]}  Rg3+ {[%clk 0:02:03]} 52. Kh2 {[%clk 0:00:04]}  e2 {[%clk 0:02:02]} 53. Rf8 {[%clk 0:00:03]}  Kd2 {[%clk 0:02:02]} 54. Rb1 {[%clk 0:00:02]}  e1=Q {[%clk 0:02:02]} 55. Rxe1 {[%clk 0:00:03]}  Kxe1 {[%clk 0:02:03]} 56. Rf1+ {[%clk 0:00:03]}  Ke2 {[%clk 0:01:55]} 57. Re1+ {[%clk 0:00:00]}  Kxe1 {[%clk 0:01:53]} 0-1


[Site "https://www.chess.com"]

[Event "Titled Tuesday Blitz November 14 Early 2023"]
[White "Aradhya, Garg"]
[Black "YouShallNotPass001"]
[WhiteFideId "25006746"]
[WhiteElo "2742"]
[BlackElo "2448"]
[Result "1/2-1/2"]
[Round "7"]
[TimeControl "180+1"]
[Date "2023.11.14"]
[WhiteClock "0:00:13"]
[BlackClock "0:00:25"]
[Board "59"]

1. d4 {[%clk 0:03:00]}  Nf6 {[%clk 0:02:59]} 2. c4 {[%clk 0:03:01]}  e6 {[%clk 0:03:00]} 3. Nf3 {[%clk 0:03:01]}  d5 {[%clk 0:03:01]} 4. Nc3 {[%clk 0:03:02]}  Bb4 {[%clk 0:02:57]} 5. Qb3 {[%clk 0:03:02]}  Nc6 {[%clk 0:02:57]} 6. Bg5 {[%clk 0:03:01]}  h6 {[%clk 0:02:56]} 7. Bxf6 {[%clk 0:03:01]}  Qxf6 {[%clk 0:02:57]} 8. e3 {[%clk 0:03:00]}  O-O {[%clk 0:02:56]} 9. Be2 {[%clk 0:03:01]}  dxc4 {[%clk 0:02:44]} 10. Qxc4 {[%clk 0:03:00]}  Bd6 {[%clk 0:02:43]} 11. O-O {[%clk 0:02:49]}  a6 {[%clk 0:02:43]} 12. Ne4 {[%clk 0:02:41]}  Qe7 {[%clk 0:02:43]} 13. Rac1 {[%clk 0:02:41]}  Bd7 {[%clk 0:02:40]} 14. a3 {[%clk 0:02:36]}  Rfc8 {[%clk 0:02:27]} 15. Nc5 {[%clk 0:02:31]}  Rab8 {[%clk 0:02:21]} 16. Qc2 {[%clk 0:02:26]}  e5 {[%clk 0:02:18]} 17. d5 {[%clk 0:02:16]}  Nd8 {[%clk 0:02:13]} 18. b4 {[%clk 0:02:16]}  f5 {[%clk 0:02:12]} 19. e4 {[%clk 0:01:59]}  f4 {[%clk 0:02:10]} 20. Nxd7 {[%clk 0:01:59]}  Qxd7 {[%clk 0:02:10]} 21. Nh4 {[%clk 0:01:59]}  Nf7 {[%clk 0:02:08]} 22. Nf5 {[%clk 0:01:58]}  g6 {[%clk 0:02:05]} 23. Nxd6 {[%clk 0:01:56]}  cxd6 {[%clk 0:02:06]} 24. Qd2 {[%clk 0:01:55]}  Kg7 {[%clk 0:02:04]} 25. h3 {[%clk 0:01:55]}  h5 {[%clk 0:02:01]} 26. b5 {[%clk 0:01:49]}  axb5 {[%clk 0:01:58]} 27. Qb4 {[%clk 0:01:49]}  Rxc1 {[%clk 0:01:55]} 28. Rxc1 {[%clk 0:01:50]}  Rc8 {[%clk 0:01:55]} 29. Rb1 {[%clk 0:01:46]}  Rc2 {[%clk 0:01:50]} 30. Bxb5 {[%clk 0:01:45]}  Qc7 {[%clk 0:01:50]} 31. Bf1 {[%clk 0:01:38]}  Ra2 {[%clk 0:01:35]} 32. Qxb7 {[%clk 0:01:15]}  Qc2 {[%clk 0:01:34]} 33. Qb6 {[%clk 0:01:10]}  Qxe4 {[%clk 0:01:32]} 34. Rc1 {[%clk 0:01:03]}  f3 {[%clk 0:01:29]} 35. Qb3 {[%clk 0:00:37]}  Qf4 {[%clk 0:00:53]} 36. Rd1 {[%clk 0:00:25]}  fxg2 {[%clk 0:00:41]} 37. Qxa2 {[%clk 0:00:24]}  gxf1=Q+ {[%clk 0:00:40]} 38. Kxf1 {[%clk 0:00:21]}  Qf3 {[%clk 0:00:39]} 39. Ke1 {[%clk 0:00:19]}  Qxh3 {[%clk 0:00:35]} 40. a4 {[%clk 0:00:17]}  Ng5 {[%clk 0:00:35]} 41. Qc4 {[%clk 0:00:15]}  Nf3+ {[%clk 0:00:34]} 42. Ke2 {[%clk 0:00:15]}  Nd4+ {[%clk 0:00:34]} 43. Rxd4 {[%clk 0:00:15]}  exd4 {[%clk 0:00:35]} 44. Qxd4+ {[%clk 0:00:15]}  Kh7 {[%clk 0:00:35]} 45. Qa7+ {[%clk 0:00:13]}  Kg8 {[%clk 0:00:34]} 46. Qb8+ {[%clk 0:00:13]}  Kf7 {[%clk 0:00:34]} 47. Qc7+ {[%clk 0:00:14]}  Ke8 {[%clk 0:00:32]} 48. Qc6+ {[%clk 0:00:13]}  Ke7 {[%clk 0:00:32]} 49. a5 {[%clk 0:00:11]}  Qg4+ {[%clk 0:00:30]} 50. Kf1 {[%clk 0:00:11]}  Qd1+ {[%clk 0:00:29]} 51. Kg2 {[%clk 0:00:11]}  Qg4+ {[%clk 0:00:29]} 52. Kf1 {[%clk 0:00:12]}  Qd1+ {[%clk 0:00:30]} 53. Kg2 {[%clk 0:00:12]}  Qg4+ {[%clk 0:00:25]} 54. Kf1 {[%clk 0:00:13]} 1/2-1/2


[Site "https://www.chess.com"]

[Event "Titled Tuesday Blitz November 14 Early 2023"]
[White "Janaszak, Dawid"]
[Black "Mikhailovsky, Vladimir"]
[WhiteFideId "1119206"]
[BlackFideId "34105414"]
[WhiteElo "2608"]
[BlackElo "2811"]
[Result "0-1"]
[Round "7"]
[TimeControl "180+1"]
[Date "2023.11.14"]
[WhiteClock "0:00:05"]
[BlackClock "0:00:08"]
[Board "62"]

1. Nf3 {[%clk 0:03:00]}  d6 {[%clk 0:02:57]} 2. e4 {[%clk 0:02:56]}  Nf6 {[%clk 0:02:57]} 3. Nc3 {[%clk 0:02:55]}  e5 {[%clk 0:02:57]} 4. d4 {[%clk 0:02:55]}  Nbd7 {[%clk 0:02:58]} 5. Bc4 {[%clk 0:02:52]}  Be7 {[%clk 0:02:58]} 6. a4 {[%clk 0:02:51]}  a5 {[%clk 0:02:58]} 7. O-O {[%clk 0:02:51]}  O-O {[%clk 0:02:59]} 8. Re1 {[%clk 0:02:49]}  c6 {[%clk 0:02:59]} 9. dxe5 {[%clk 0:02:48]}  Nxe5 {[%clk 0:02:51]} 10. Nxe5 {[%clk 0:02:48]}  dxe5 {[%clk 0:02:52]} 11. Qf3 {[%clk 0:02:46]}  Bg4 {[%clk 0:02:38]} 12. Qg3 {[%clk 0:02:46]}  Qc7 {[%clk 0:02:37]} 13. h3 {[%clk 0:02:43]}  Bh5 {[%clk 0:02:37]} 14. Bg5 {[%clk 0:02:42]}  Bg6 {[%clk 0:02:36]} 15. h4 {[%clk 0:02:15]}  Nh5 {[%clk 0:02:27]} 16. Qg4 {[%clk 0:02:11]}  Bxg5 {[%clk 0:02:26]} 17. Qxg5 {[%clk 0:02:10]}  Rad8 {[%clk 0:02:17]} 18. Ne2 {[%clk 0:02:01]}  Rd6 {[%clk 0:02:09]} 19. Ng3 {[%clk 0:01:56]}  h6 {[%clk 0:01:58]} 20. Qe3 {[%clk 0:01:53]}  Nf4 {[%clk 0:01:55]} 21. Ne2 {[%clk 0:01:50]}  Nxe2+ {[%clk 0:01:42]} 22. Rxe2 {[%clk 0:01:50]}  Rfd8 {[%clk 0:01:42]} 23. Qg3 {[%clk 0:01:43]}  Qe7 {[%clk 0:01:37]} 24. Rae1 {[%clk 0:01:37]}  Bh5 {[%clk 0:01:31]} 25. Re3 {[%clk 0:01:30]}  Qf6 {[%clk 0:01:20]} 26. Rd3 {[%clk 0:01:27]}  Rd4 {[%clk 0:01:16]} 27. Rxd4 {[%clk 0:01:19]}  Rxd4 {[%clk 0:01:16]} 28. b3 {[%clk 0:01:17]}  Rd2 {[%clk 0:00:59]} 29. Bd3 {[%clk 0:01:15]}  Bd1 {[%clk 0:00:59]} 30. Re3 {[%clk 0:00:48]}  Bxc2 {[%clk 0:00:54]} 31. Rf3 {[%clk 0:00:48]}  Rxd3 {[%clk 0:00:38]} 32. Rxd3 {[%clk 0:00:42]}  Bxd3 {[%clk 0:00:38]} 33. Qxd3 {[%clk 0:00:42]}  Qxh4 {[%clk 0:00:38]} 34. g3 {[%clk 0:00:39]}  Qe7 {[%clk 0:00:21]} 35. Qc3 {[%clk 0:00:38]}  Qb4 {[%clk 0:00:22]} 36. Qxe5 {[%clk 0:00:38]}  Qxb3 {[%clk 0:00:22]} 37. Qf5 {[%clk 0:00:27]}  b5 {[%clk 0:00:13]} 38. Qc8+ {[%clk 0:00:23]}  Kh7 {[%clk 0:00:14]} 39. Qxc6 {[%clk 0:00:23]}  bxa4 {[%clk 0:00:14]} 40. Qc5 {[%clk 0:00:21]}  a3 {[%clk 0:00:13]} 41. Qxa5 {[%clk 0:00:15]}  a2 {[%clk 0:00:13]} 42. Kg2 {[%clk 0:00:14]}  g6 {[%clk 0:00:11]} 43. Qe5 {[%clk 0:00:10]}  Qb1 {[%clk 0:00:09]} 44. Qf6 {[%clk 0:00:10]}  a1=Q {[%clk 0:00:08]} 45. Qxf7+ {[%clk 0:00:05]}  Qg7 {[%clk 0:00:08]} 0-1


[Site "https://www.chess.com"]

[Event "Titled Tuesday Blitz November 14 Early 2023"]
[White "Manukyan, Sargis A."]
[Black "Materia, Marco"]
[WhiteFideId "13303970"]
[BlackFideId "45150451"]
[WhiteElo "2599"]
[BlackElo "2799"]
[Result "0-1"]
[Round "7"]
[TimeControl "180+1"]
[Date "2023.11.14"]
[WhiteClock "0:00:05"]
[BlackClock "0:01:09"]
[Board "63"]

1. d4 {[%clk 0:03:00]}  Nf6 {[%clk 0:02:59]} 2. c4 {[%clk 0:03:00]}  e6 {[%clk 0:03:00]} 3. Nc3 {[%clk 0:03:00]}  d5 {[%clk 0:03:00]} 4. Nf3 {[%clk 0:03:00]}  Be7 {[%clk 0:02:59]} 5. Bg5 {[%clk 0:03:00]}  h6 {[%clk 0:02:59]} 6. Bh4 {[%clk 0:03:00]}  O-O {[%clk 0:02:59]} 7. e3 {[%clk 0:03:01]}  b6 {[%clk 0:02:58]} 8. cxd5 {[%clk 0:03:01]}  Nxd5 {[%clk 0:02:58]} 9. Bxe7 {[%clk 0:03:02]}  Qxe7 {[%clk 0:02:59]} 10. Nxd5 {[%clk 0:03:02]}  exd5 {[%clk 0:02:59]} 11. Bd3 {[%clk 0:03:03]}  Be6 {[%clk 0:02:59]} 12. O-O {[%clk 0:03:03]}  c5 {[%clk 0:03:00]} 13. dxc5 {[%clk 0:03:04]}  bxc5 {[%clk 0:03:00]} 14. Rc1 {[%clk 0:03:05]}  Nd7 {[%clk 0:03:00]} 15. e4 {[%clk 0:03:06]}  d4 {[%clk 0:02:55]} 16. Nd2 {[%clk 0:03:04]}  Nb6 {[%clk 0:02:52]} 17. b3 {[%clk 0:03:04]}  Rac8 {[%clk 0:02:52]} 18. f4 {[%clk 0:03:04]}  f5 {[%clk 0:02:50]} 19. Re1 {[%clk 0:02:55]}  Qf7 {[%clk 0:02:46]} 20. e5 {[%clk 0:02:44]}  Nd5 {[%clk 0:02:43]} 21. Nc4 {[%clk 0:02:36]}  Nxf4 {[%clk 0:02:42]} 22. Nd6 {[%clk 0:02:28]}  Qg6 {[%clk 0:02:42]} 23. g3 {[%clk 0:02:18]}  Rc7 {[%clk 0:02:34]} 24. Nb5 {[%clk 0:02:14]}  Rd7 {[%clk 0:02:21]} 25. Rxc5 {[%clk 0:02:08]}  Bd5 {[%clk 0:02:17]} 26. Rxd5 {[%clk 0:02:00]}  Nxd5 {[%clk 0:02:18]} 27. Bc4 {[%clk 0:01:39]}  Kh7 {[%clk 0:01:39]} 28. Qxd4 {[%clk 0:01:36]}  Nb6 {[%clk 0:01:38]} 29. Nd6 {[%clk 0:01:30]}  Nxc4 {[%clk 0:01:36]} 30. bxc4 {[%clk 0:01:31]}  f4 {[%clk 0:01:36]} 31. Qe4 {[%clk 0:01:05]}  fxg3 {[%clk 0:01:35]} 32. hxg3 {[%clk 0:00:56]}  Re7 {[%clk 0:01:31]} 33. c5 {[%clk 0:00:46]}  Qxe4 {[%clk 0:01:30]} 34. Rxe4 {[%clk 0:00:47]}  Rf3 {[%clk 0:01:30]} 35. e6 {[%clk 0:00:20]}  Rxg3+ {[%clk 0:01:30]} 36. Kh2 {[%clk 0:00:17]}  Rg5 {[%clk 0:01:29]} 37. Nc8 {[%clk 0:00:09]}  Rc7 {[%clk 0:01:25]} 38. Nd6 {[%clk 0:00:07]}  Rh5+ {[%clk 0:01:19]} 39. Kg2 {[%clk 0:00:07]}  Rg5+ {[%clk 0:01:20]} 40. Kh2 {[%clk 0:00:08]}  Re7 {[%clk 0:01:09]} 41. c6 {[%clk 0:00:07]}  Rc5 {[%clk 0:01:07]} 42. Nc8 {[%clk 0:00:08]}  Rc7 {[%clk 0:01:06]} 43. Nxa7 {[%clk 0:00:06]}  Rxa7 {[%clk 0:01:04]} 44. e7 {[%clk 0:00:07]}  Rxa2+ {[%clk 0:01:04]} 45. Kg3 {[%clk 0:00:06]}  Ra8 {[%clk 0:01:05]} 46. e8=Q {[%clk 0:00:04]}  Rxe8 {[%clk 0:01:05]} 47. Rxe8 {[%clk 0:00:05]}  Rxc6 {[%clk 0:01:06]} 48. Re3 {[%clk 0:00:06]}  h5 {[%clk 0:01:05]} 49. Kh4 {[%clk 0:00:06]}  Kh6 {[%clk 0:01:05]} 50. Ra3 {[%clk 0:00:06]}  Rc4+ {[%clk 0:01:06]} 51. Kh3 {[%clk 0:00:07]}  g6 {[%clk 0:01:06]} 52. Ra5 {[%clk 0:00:08]}  Rc3+ {[%clk 0:01:06]} 53. Kh2 {[%clk 0:00:07]}  h4 {[%clk 0:01:06]} 54. Kg2 {[%clk 0:00:08]}  g5 {[%clk 0:01:06]} 55. Kh2 {[%clk 0:00:09]}  Kh5 {[%clk 0:01:07]} 56. Ra4 {[%clk 0:00:09]}  Rc2+ {[%clk 0:01:06]} 57. Kg1 {[%clk 0:00:09]}  g4 {[%clk 0:01:07]} 58. Kh1 {[%clk 0:00:09]}  h3 {[%clk 0:01:07]} 59. Kg1 {[%clk 0:00:09]}  Kh4 {[%clk 0:01:07]} 60. Ra3 {[%clk 0:00:09]}  Rc1+ {[%clk 0:01:07]} 61. Kf2 {[%clk 0:00:06]}  h2 {[%clk 0:01:07]} 62. Ra8 {[%clk 0:00:03]}  g3+ {[%clk 0:01:07]} 63. Ke2 {[%clk 0:00:02]}  h1=Q {[%clk 0:01:07]} 64. Rh8+ {[%clk 0:00:03]}  Kg4 {[%clk 0:01:07]} 65. Rg8+ {[%clk 0:00:04]}  Kf4 {[%clk 0:01:07]} 66. Rf8+ {[%clk 0:00:04]}  Ke5 {[%clk 0:01:08]} 67. Re8+ {[%clk 0:00:04]}  Kd6 {[%clk 0:01:08]} 68. Rd8+ {[%clk 0:00:05]}  Ke7 {[%clk 0:01:09]} 69. Ke3 {[%clk 0:00:03]}  Kxd8 {[%clk 0:01:09]} 70. Kf4 {[%clk 0:00:04]}  g2 {[%clk 0:01:09]} 71. Kf5 {[%clk 0:00:05]}  Qh4 {[%clk 0:01:09]} 0-1


[Site "https://www.chess.com"]

[Event "Titled Tuesday Blitz November 14 Early 2023"]
[White "Panchenko, Dmitry"]
[Black "Tikhonov, Viacheslav"]
[WhiteFideId "4169158"]
[BlackFideId "44196407"]
[WhiteElo "2745"]
[BlackElo "2596"]
[Result "1-0"]
[Round "7"]
[TimeControl "180+1"]
[Date "2023.11.14"]
[WhiteClock "0:00:08"]
[BlackClock "0:00:00"]
[Board "64"]

1. e4 {[%clk 0:03:00]}  c5 {[%clk 0:02:59]} 2. Nf3 {[%clk 0:02:58]}  g6 {[%clk 0:02:59]} 3. d4 {[%clk 0:02:53]}  cxd4 {[%clk 0:03:00]} 4. Nxd4 {[%clk 0:02:54]}  Nc6 {[%clk 0:03:00]} 5. Nc3 {[%clk 0:02:53]}  Bg7 {[%clk 0:03:00]} 6. Be3 {[%clk 0:02:53]}  Nf6 {[%clk 0:03:00]} 7. Nxc6 {[%clk 0:02:51]}  bxc6 {[%clk 0:03:00]} 8. e5 {[%clk 0:02:50]}  Nd5 {[%clk 0:03:01]} 9. Nxd5 {[%clk 0:02:50]}  cxd5 {[%clk 0:03:02]} 10. Qxd5 {[%clk 0:02:51]}  Rb8 {[%clk 0:03:03]} 11. O-O-O {[%clk 0:02:51]}  Bb7 {[%clk 0:03:02]} 12. Qc5 {[%clk 0:02:35]}  Bc6 {[%clk 0:02:55]} 13. f4 {[%clk 0:02:23]}  O-O {[%clk 0:02:54]} 14. h4 {[%clk 0:02:13]}  Re8 {[%clk 0:02:13]} 15. h5 {[%clk 0:02:11]}  Qc7 {[%clk 0:02:10]} 16. h6 {[%clk 0:02:04]}  Bh8 {[%clk 0:02:08]} 17. b3 {[%clk 0:01:51]}  d6 {[%clk 0:01:31]} 18. Qxa7 {[%clk 0:01:38]}  Rb7 {[%clk 0:01:18]} 19. Qd4 {[%clk 0:01:32]}  dxe5 {[%clk 0:01:15]} 20. Qd2 {[%clk 0:01:25]}  Ra8 {[%clk 0:00:53]} 21. Kb1 {[%clk 0:01:10]}  Rbb8 {[%clk 0:00:49]} 22. Bc4 {[%clk 0:01:06]}  Ra3 {[%clk 0:00:27]} 23. f5 {[%clk 0:00:52]}  gxf5 {[%clk 0:00:14]} 24. Bc5 {[%clk 0:00:52]}  Raa8 {[%clk 0:00:09]} 25. Qg5+ {[%clk 0:00:51]}  Kf8 {[%clk 0:00:08]} 26. Qxf5 {[%clk 0:00:37]}  Be8 {[%clk 0:00:05]} 27. Qxh7 {[%clk 0:00:33]}  Bf6 {[%clk 0:00:05]} 28. Qf5 {[%clk 0:00:23]}  Kg8 {[%clk 0:00:06]} 29. h7+ {[%clk 0:00:22]}  Kh8 {[%clk 0:00:07]} 30. Bd6 {[%clk 0:00:18]}  Qa5 {[%clk 0:00:06]} 31. a3 {[%clk 0:00:11]}  Qb6 {[%clk 0:00:02]} 32. Bxb8 {[%clk 0:00:10]}  Rxa3 {[%clk 0:00:01]} 33. Qg4 {[%clk 0:00:09]}  Bg7 {[%clk 0:00:01]} 34. Qxg7+ {[%clk 0:00:08]}  Kxg7 {[%clk 0:00:01]} 35. h8=Q+ {[%clk 0:00:08]}  Kg6 {[%clk 0:00:01]} 36. Qh6+ {[%clk 0:00:08]}  Kf5 {[%clk 0:00:00]} 37. Qxb6 {[%clk 0:00:08]} 1-0


[Site "https://www.chess.com"]